Workbook

Sheet Description
B2: Description of Tools and Processes
B4: 0 | C4: Tool Structure: The tool is provided in 5 wroksheets for calculating Curve Number (CN), Time of Concentration (Tc), Peak flood (Qp) and display hydrogrpahs and the results is provided in Summary Sheet
B5: 1 | C5: Curve Numbwer (CN): Calculation of CN for average Antecedent Moisture Condition (AMC II) Land use/land cover (LULC). Exhaustive LULC types are included to enable selection. The LULC types in the list may not exactly match with the LULC types of the catchment. Hence, care should be taken to select comparable LULC types
C6: Select the LULC data from drop-down menu. The #N/A in Columns F&G indicates that there is no such combination of the LULC (Column B), Treatment type (Column C) and Hydrologic condition (Column D) and revise your selection. The proportion of area covered by each LULC should be etered from keyboard. Options are provided in Peakflow Sheet to select AMC II or AMC III.
B7: 2 | C7: Time of concentration (Tc): As explained in SSIGL 3, option is provided to enable consider or ignore Tc for overland flow (Kerby method). Note that considering overland flow will increase time of TC and hence reduce peak flood.
B8: 3 | C8: Peak flow (Qp)
C9: a | D9: The tool considers two cases for cartchmenrt size. Hydrograph is included for catchment area of up to 10 sq.km while ordinates of composite hydrographs are included for for catchemnts areas above the indicated area.
C10: b | D10: Rainfall profile: Two options are provided. Rainfall profile can be entered from keyboard if data is availanble. If not, Type II rainfall distribution is provided in a chart (rainfall profile sheet) and data can be read from the chart corresponding to the excess rainfall duration and entered in the appropriate column. Alternatively, a formula developed from the chart cand be used.
C11: c | D11: Area reduction factor (ARF): Similalry, if data is avalibale, that will be the first option, if not ARF can be selected from the ARF Table (ARF sheet) and entered in the appropriate column. The send option is to use an empirical formula.
B12: 4 | C12: Hydrograph: Flood hydrograph is displayed for catchemnt area above 10 km2
B13: 5 | C13: Data Entry: Yellow-shaded cells are for data entry from keyboard
B14: 6 | C14: Selection: Green-shaded cells are for data selection from drop-down menu
B15: 7 | C15: Other colors are for calculalions
C17: Contact for More Info and Comments | J17: GIRDC, 2018
C18: NB: Do not Erase linked Formulas | J18: Addis Ababa, Ethiopia

Sheet Rainfall_Profile
A2: NB: Rainfall distribution, type II
B4: Time (hr) | C4: Rainfall profile
B5: =5/60 -> 0.08333333333 | C5: 10.84905581
B6: =10/60 -> 0.1666666667 | C6: 20.65639527
B7: =15/60 -> 0.25 | C7: 26.39332108
B8: =25/60 -> 0.4166666667 | C8: 33.62099284
B9: =30/60 -> 0.5 | C9: 38.20066054
B10: =60/60 -> 1 | C10: 46.008
B11: =120/60 -> 2 | C11: 53.81533946
B12: =180/60 -> 3 | C12: 60.55226527
B13: =240/60 -> 4 | C13: 66.62267892
B14: 5 | C14: 69.77993702
B15: 6 | C15: 72.35960473
B16: 7 | C16: 74.5406827
B17: 8 | C17: 77.43001837
B18: 9 | C18: 79.09653054
B19: 10 | C19: 80.58727648
B20: 11 | C20: 82.93582021
B21: 12 | C21: 84.1
B22: 15 | C22: 89.05
B23: 18 | C23: 93.24
B24: =1440/60 -> 24 | C24: 100

Sheet ARF
A2: NB: Areal to point rainfall ratio (%) - Area Reduction Factor ARF
B3: Area | C3: Duration (hr) | T3: Duration hours
B4: (km2) | C4: 0.5 | D4: 1 | E4: 2 | F4: 3 | G4: 4 | H4: 5 | I4: 6 | J4: 9 | K4: 12 | L4: 15 | M4: 18 | N4: 21 | O4: 24 | R4: Goli SSIP, km2 | S4: 1 | T4: 2 | U4: 3 | V4: 4 | W4: 5 | X4: 6
B5: 25 | C5: 88 | D5: 78 | E5: 82 | F5: 85 | G5: 87 | H5: 88 | I5: 88 | J5: 91 | K5: 92 | L5: 93 | M5: 93 | N5: 94 | O5: 94 | R5: 27.17 | S5: =$R$5*D5/$B$5 -> 84.7704 | T5: =$R$5*E5/$B$5 -> 89.1176 | U5: 92.378 | V5: 94.5516 | W5: 95.6384 | X5: 95.6384
B6: 50 | C6: 61 | D6: 71 | E6: 78 | F6: 82 | G6: 84 | H6: 85 | I6: 87 | J6: 89 | K6: 90 | L6: 91 | M6: 92 | N6: 92 | O6: 93
B7: 75 | C7: 57 | D7: 67 | E7: 75 | F7: 79 | G7: 82 | H7: 84 | I7: 83 | J7: 87 | K7: 89 | L7: 90 | M7: 91 | N7: 91 | O7: 92 | S7: :. One can calculate with respect to study area size
B8: 100 | C8: 54 | D8: 65 | E8: 73 | F8: 78 | G8: 80 | H8: 82 | I8: 83 | J8: 86 | K8: 88 | L8: 89 | M8: 90 | N8: 91 | O8: 91
B9: 125 | C9: 52 | D9: 63 | E9: 72 | F9: 76 | G9: 79 | H9: 81 | I9: 82 | J9: 85 | K9: 87 | L9: 88 | M9: 89 | N9: 90 | O9: 91
B10: 150 | C10: 50 | D10: 61 | E10: 70 | F10: 75 | G10: 78 | H10: 80 | I10: 81 | J10: 84 | K10: 86 | L10: 88 | M10: 89 | N10: 89 | O10: 90
B11: 175 | C11: 48 | D11: 59 | E11: 69 | F11: 74 | G11: 77 | H11: 79 | I11: 81 | J11: 84 | K11: 86 | L11: 87 | M11: 88 | N11: 89 | O11: 90
B12: 200 | C12: 46 | D12: 58 | E12: 68 | F12: 73 | G12: 76 | H12: 78 | I12: 80 | J12: 83 | K12: 85 | L12: 87 | M12: 88 | N12: 88 | O12: 89
B13: 225 | C13: 45 | D13: 57 | E13: 57 | F13: 72 | G13: 75 | H13: 77 | I13: 72 | J13: 82 | K13: 85 | L13: 86 | M13: 87 | N13: 88 | O13: 89
B14: 250 | C14: 44 | D14: 55 | E14: 66 | F14: 71 | G14: 74 | H14: 77 | I14: 78 | J14: 82 | K14: 84 | L14: 86 | M14: 87 | N14: 88 | O14: 88
B15: 275 | C15: 42 | D15: 54 | E15: 65 | F15: 70 | G15: 74 | H15: 76 | I15: 78 | J15: 81 | K15: 84 | L15: 85 | M15: 86 | N15: 87 | O15: 88
B16: 300 | C16: 41 | D16: 53 | E16: 54 | F16: 70 | G16: 73 | H16: 75 | I16: 77 | J16: 81 | K16: 83 | L16: 85 | M16: 86 | N16: 87 | O16: 88
B17: 325 | C17: 40 | D17: 53 | E17: 63 | F17: 58 | G17: 72 | H17: 73 | I17: 77 | J17: 80 | K17: 83 | L17: 84 | M17: 86 | N17: 87 | O17: 87
B18: 350 | C18: 38 | D18: 52 | E18: 63 | F18: 68 | G18: 72 | H18: 74 | I18: 76 | J18: 80 | K18: 82 | L18: 84 | M18: 85 | N18: 86 | O18: 87
B19: 375 | C19: 39 | D19: 51 | E19: 62 | F19: 68 | G19: 71 | H19: 74 | I19: 78 | J19: 80 | K19: 82 | L19: 84 | M19: 85 | N19: 86 | O19: 87
B20: 400 | C20: 38 | D20: 50 | E20: 61 | F20: 67 | G20: 71 | H20: 73 | I20: 75 | J20: 79 | K20: 82 | L20: 83 | M20: 85 | N20: 86 | O20: 87
B21: 425 | C21: 37 | D21: 50 | E21: 61 | F21: 67 | G21: 70 | H21: 73 | I21: 75 | J21: 79 | K21: 81 | L21: 83 | M21: 84 | N21: 85 | O21: 86
B22: 450 | C22: 36 | D22: 49 | E22: 60 | F22: 66 | G22: 70 | H22: 72 | I22: 74 | J22: 79 | K22: 81 | L22: 83 | M22: 84 | N22: 85 | O22: 86
B23: 475 | C23: 36 | D23: 48 | E23: 60 | F23: 66 | G23: 69 | H23: 72 | I23: 74 | J23: 78 | K23: 81 | L23: 83 | M23: 84 | N23: 85 | O23: 86
B24: 500 | C24: 35 | D24: 48 | E24: 59 | F24: 66 | G24: 69 | H24: 72 | I24: 74 | J24: 78 | K24: 80 | L24: 82 | M24: 84 | N24: 85 | O24: 86
B25: 525 | C25: 34 | D25: 47 | E25: 59 | F25: 65 | G25: 68 | H25: 71 | I25: 73 | J25: 78 | K25: 80 | L25: 82 | M25: 83 | N25: 85 | O25: 85
B26: 550 | C26: 34 | D26: 47 | E26: 58 | F26: 64 | G26: 68 | H26: 71 | I26: 73 | J26: 77 | K26: 80 | L26: 82 | M26: 83 | N26: 84 | O26: 85
B27: 575 | C27: 33 | D27: 46 | E27: 58 | F27: 64 | G27: 68 | H27: 71 | I27: 73 | J27: 77 | K27: 80 | L27: 82 | M27: 83 | N27: 84 | O27: 85
B28: 600 | C28: 33 | D28: 45 | E28: 57 | F28: 63 | G28: 67 | H28: 71 | I28: 72 | J28: 77 | K28: 79 | L28: 81 | M28: 83 | N28: 84 | O28: 85
B29: 625 | C29: 32 | D29: 45 | E29: 57 | F29: 63 | G29: 67 | H29: 70 | I29: 72 | J29: 76 | K29: 79 | L29: 81 | M29: 83 | N29: 84 | O29: 85
B30: 650 | C30: 32 | D30: 45 | E30: 56 | F30: 63 | G30: 67 | H30: 70 | I30: 72 | J30: 76 | K30: 79 | L30: 81 | M30: 82 | N30: 84 | O30: 84
B31: 675 | C31: 31 | D31: 44 | E31: 56 | F31: 62 | G31: 66 | H31: 69 | I31: 71 | J31: 76 | K31: 79 | L31: 81 | M31: 82 | N31: 83 | O31: 84
B32: 700 | C32: 31 | D32: 44 | E32: 56 | F32: 62 | G32: 66 | H32: 69 | I32: 71 | J32: 76 | K32: 78 | L32: 80 | M32: 82 | N32: 83 | O32: 84
B33: 725 | C33: 31 | D33: 43 | E33: 55 | F33: 62 | G33: 66 | H33: 69 | I33: 71 | J33: 75 | K33: 78 | L33: 80 | M33: 82 | N33: 83 | O33: 84
B34: 750 | C34: 30 | D34: 43 | E34: 55 | F34: 61 | G34: 65 | H34: 68 | I34: 71 | J34: 75 | K34: 78 | L34: 80 | M34: 82 | N34: 83 | O34: 84

Sheet Summary
A2: NB: Design Flood Analysis
B3: Date: | C3: =TODAY() -> 2018-12-06
B4: Analysis Made By:
B5: Parameter Description | C5: Value
B6: Name of Project | C6: Goli SSIP
B7: Region | C7: Oromia
B8: Zone | C8: West Shoa
B9: Woreda | C9: Ejere (Addis Alem)
B10: Kebele | C10: -
B11: Name of Catchment | C11: Goli watershed
B12: Name of river (if different from cartchment)
B13: Catchment area (sq.km) | C13: =Peakflow!C11 -> 27.17
B14: Length of rivwr/stream (km) | C14: =MAX(TC!C5:C19) -> 12.17
B15: Maximum elevation of the river/stream (m) | C15: =MAX(TC!D5:D19) -> 2521
B16: Minimum elevation of the river/stream (m) | C16: =MIN(TC!D5:D19) -> 2133
B17: Average slope of the river/stream (%) | C17: =(C15-C16)/C14/10 -> 3.188167625
B18: Design return period (years) | C18: =Peakflow!C9 -> 50
B19: 24-hr maximum point rainfall | C19: =Peakflow!C10 -> 192.13
B20: Time of concentration (hr) | C20: =Peakflow!C12 -> 3.9282779
B21: Unit rainfall duration (hr) | C21: =Peakflow!C13 -> 1
B22: Curve Number for AMC II | C22: =Peakflow!C17 -> 0.8200153917
B23: Areal Rainfall (mm) | C23: =Peakflow!C21 -> 20.93473224
B24: Curve Number for AMC II | C24: =Peakflow!C19 -> 51.3
B25: Maximum retention potential (mm) | C25: =Peakflow!C20 -> 241.1267057
B26: Runoff (mm) | C26: =Peakflow!C21 -> 20.93473224
B27: Peak flow rate per mm of runoff (cms/mm) | C27: =Peakflow!C22 -> 1.978097932
B28: Peak flood (cms) | C28: =Peakflow!C23 -> 32.3

Sheet CN
A2: NB: CN Computation
C3: Enter Data Manually in Yellow Cells
C4: Select Data from Drop-Down Menu in Green Cells
B6: Soils Group | C6: Land use | D6: Treatment | E6: Hydrologic Condition | F6: Area proportion (Decimal or %) | G6: CNp | H6: Weighted CNw | N6: Hydrologic soil group | T6: LUTI | U6: Land cover | V6: Treatment | W6: Infiltration | X6: Combined | Y6: A | Z6: B | AA6: C | AB6: D
J7: Cover Type | K7: Treatment** | L7: Hydrologic Condition | N7: A | O7: B | P7: C | Q7: D | S7: Drow-down menu | U7: Fallow | X7: =IF(U7="",U$7&V7&W7,U7&V7&W7) -> Fallow | Y7: 77 | Z7: 86 | AA7: 91 | AB7: 94
B8: A | C8: Farms building and lanes | F8: 30 | G8: =IF(T8="",0,VLOOKUP(T8,M$8:Q$90,2,FALSE)) -> 59 | H8: =IF(F8>1,F8*G8/100,F8*G8) -> 17.7 | J8: Fallow | K8: Bare soil | L8: Poor | M8: =IF(J8="",J$8&K8&L8,J8&K8&L8) -> FallowBare soilPoor | N8: 77 | O8: 86 | P8: 91 | Q8: 94 | S8: Fallow | T8: =C8&D8&E8 -> Farms building and lanes | U8: Wasteland | V8: Straight row | X8: =IF(U8="",U$7&V8&W8,U8&V8&W8) -> WastelandStraight row | Y8: 77 | Z8: 86 | AA8: 91 | AB8: 94
C9: Brush weed grass | F9: 70 | G9: 48 | H9: =IF(F9>1,F9*G9/100,F9*G9) -> 33.6 | K9: CR | L9: Poor | M9: =IF(J9="",J$8&K9&L9,J9&K9&L9) -> FallowCRPoor | N9: 76 | O9: 85 | P9: 90 | Q9: 93 | S9: Row crops | T9: =C9&D9&E9 -> Brush weed grass | U9: Row crops | V9: Straight row | W9: Poor | X9: =IF(U9="",U$9&V9&W9,U9&V9&W9) -> Row cropsStraight rowPoor | Y9: 72 | Z9: 81 | AA9: 88 | AB9: 91
G10: =IF(T10="",0,VLOOKUP(T10,M$8:Q$90,2,FALSE)) -> 0 | H10: =IF(F10>1,F10*G10/100,F10*G10) -> 0 | K10: CR | L10: Good | M10: =IF(J10="",J$8&K10&L10,J10&K10&L10) -> FallowCRGood | N10: 74 | O10: 83 | P10: 88 | Q10: 90 | S10: Small Grain | T10: =C10&D10&E10 ->  | V10: Straight row | W10: Good | X10: Row cropsStraight rowGood | Y10: 67 | Z10: 78 | AA10: 85 | AB10: 89
G11: =IF(T11="",0,VLOOKUP(T11,M$8:Q$90,2,FALSE)) -> 0 | H11: 0 | J11: Row crops | K11: SR | L11: Poor | M11: =IF(J11="",J$11&K11&L11,J11&K11&L11) -> Row cropsSRPoor | N11: 72 | O11: 81 | P11: 88 | Q11: 91 | S11: Meadow | T11: =C11&D11&E11 ->  | V11: Contoured | W11: Poor | X11: Row cropsContouredPoor | Y11: 70 | Z11: 79 | AA11: 84 | AB11: 88
B12: Sub Total | F12: =SUM(F8:F11) -> 100 | H12: =SUMPRODUCT(H8:H11) -> 51.3 | K12: SR | L12: Good | M12: =IF(J12="",J$11&K12&L12,J12&K12&L12) -> Row cropsSRGood | N12: 67 | O12: 78 | P12: 85 | Q12: 89 | S12: Pasture-grass | V12: Contoured | W12: Good | X12: Row cropsContouredGood | Y12: 65 | Z12: 75 | AA12: 82 | AB12: 86
B13: B | G13: =IF(T13="",0,VLOOKUP(T13,M$8:Q$90,3,FALSE)) -> 0 | H13: 0 | K13: SR+CR | L13: Poor | M13: Row cropsSR+CRPoor | N13: 71 | O13: 80 | P13: 87 | Q13: 90 | S13: Brush weed grass | T13: =C13&D13&E13 ->  | V13: Contoured and treated | W13: Poor | X13: Row cropsContoured and treatedPoor | Y13: 66 | Z13: 74 | AA13: 80 | AB13: 82
G14: =IF(T14="",0,VLOOKUP(T14,M$8:Q$90,3,FALSE)) -> 0 | H14: 0 | K14: SR+CR | L14: Good | M14: Row cropsSR+CRGood | N14: 64 | O14: 75 | P14: 82 | Q14: 85 | S14: Woods-grass | T14: =C14&D14&E14 ->  | V14: Contoured and treated | W14: Good | X14: Row cropsContoured and treatedGood | Y14: 62 | Z14: 71 | AA14: 78 | AB14: 81
G15: =IF(T15="",0,VLOOKUP(T15,M$8:Q$90,3,FALSE)) -> 0 | H15: 0 | K15: C | L15: Poor | M15: Row cropsCPoor | N15: 70 | O15: 79 | P15: 84 | Q15: 88 | S15: Woodland | T15: =C15&D15&E15 ->  | U15: Small Grains | V15: Straight row | W15: Poor | X15: =IF(U15="",U$15&V15&W15,U15&V15&W15) -> Small GrainsStraight rowPoor | Y15: 65 | Z15: 76 | AA15: 84 | AB15: 88
G16: =IF(T16="",0,VLOOKUP(T16,M$8:Q$90,3,FALSE)) -> 0 | H16: 0 | K16: C | L16: Good | M16: Row cropsCGood | N16: 65 | O16: 75 | P16: 82 | Q16: 86 | S16: Farms building and lanes | T16: =C16&D16&E16 ->  | V16: Straight row | W16: Good | X16: ` | Y16: 63 | Z16: 75 | AA16: 83 | AB16: 87
B17: Sub Total | F17: =SUM(F13:F16) -> 0 | H17: =SUM(H13:H16) -> 0 | K17: C+CR | L17: Poor | M17: Row cropsC+CRPoor | N17: 69 | O17: 78 | P17: 83 | Q17: 87 | S17: Mix grass weeds and brush | V17: Countered | W17: Poor | X17: =IF(U17="",U$15&V17&W17,U17&V17&W17) -> Small GrainsCounteredPoor | Y17: 63 | Z17: 74 | AA17: 82 | AB17: 85
B18: C | G18: =IF(T18="",0,VLOOKUP(T18,M$8:Q$90,4,FALSE)) -> 0 | H18: 0 | K18: C+CR | L18: Good | M18: Row cropsC+CRGood | N18: 64 | O18: 74 | P18: 81 | Q18: 85 | S18: Mount brush-small trees | T18: =C18&D18&E18 ->  | V18: Countered | W18: Good | X18: =IF(U18="",U$15&V18&W18,U18&V18&W18) -> Small GrainsCounteredGood | Y18: 61 | Z18: 73 | AA18: 81 | AB18: 84
G19: =IF(T19="",0,VLOOKUP(T19,M$8:Q$90,4,FALSE)) -> 0 | H19: 0 | K19: C & T | L19: Poor | M19: Row cropsC & TPoor | N19: 66 | O19: 74 | P19: 80 | Q19: 82 | S19: Small trees grass | T19: =C19&D19&E19 ->  | V19: Contoured and treated | W19: Poor | X19: =IF(U19="",U$15&V19&W19,U19&V19&W19) -> Small GrainsContoured and treatedPoor | Y19: 61 | Z19: 72 | AA19: 79 | AB19: 82
G20: =IF(T20="",0,VLOOKUP(T20,M$8:Q$90,4,FALSE)) -> 0 | H20: 0 | K20: C&T | L20: Good | M20: Row cropsC&TGood | N20: 62 | O20: 71 | P20: 78 | Q20: 81 | S20: Brush-grass understory | T20: =C20&D20&E20 ->  | V20: Contoured and treated | W20: Good | X20: =IF(U20="",U$15&V20&W20,U20&V20&W20) -> Small GrainsContoured and treatedGood | Y20: 59 | Z20: 70 | AA20: 78 | AB20: 81
G21: =IF(T21="",0,VLOOKUP(T21,M$8:Q$90,4,FALSE)) -> 0 | H21: 0 | K21: C & T+CR | L21: Poor | M21: Row cropsC & T+CRPoor | N21: 65 | O21: 73 | P21: 79 | Q21: 81 | S21: Desert shrub brush | T21: =C21&D21&E21 ->  | U21: Pasture | W21: Poor | X21: =IF(U21="",U$21&V21&W21,U21&V21&W21) -> PasturePoor | Y21: 68 | Z21: 79 | AA21: 86 | AB21: 89
B22: Sub Total | F22: =SUM(F18:F21) -> 0 | H22: =SUM(H18:H21) -> 0 | K22: C & T+CR | L22: Good | M22: Row cropsC & T+CRGood | N22: 61 | O22: 70 | P22: 77 | Q22: 80 | S22: Open space | W22: Fair | X22: PastureFair | Y22: 49 | Z22: 69 | AA22: 79 | AB22: 84
B23: D | G23: =IF(T23="",0,VLOOKUP(T23,M$8:Q$90,5,FALSE)) -> 0 | H23: 0 | J23: Small Grain | K23: SR | L23: Poor | M23: =IF(J23="",J$23&K23&L23,J23&K23&L23) -> Small GrainSRPoor | N23: 65 | O23: 76 | P23: 84 | Q23: 88 | S23: Impervious areas | T23: =C23&D23&E23 ->  | W23: Good | X23: PastureGood | Y23: 39 | Z23: 61 | AA23: 74 | AB23: 80
G24: =IF(T24="",0,VLOOKUP(T24,M$8:Q$90,5,FALSE)) -> 0 | H24: 0 | K24: SR | L24: Good | M24: =IF(J24="",J$23&K24&L24,J24&K24&L24) -> Small GrainSRGood | N24: 63 | O24: 75 | P24: 83 | Q24: 87 | S24: Natural desert cover | T24: =C24&D24&E24 ->  | V24: Contoured | W24: Poor | X24: PastureContouredPoor | Y24: 47 | Z24: 67 | AA24: 81 | AB24: 88
G25: =IF(T25="",0,VLOOKUP(T25,M$8:Q$90,5,FALSE)) -> 0 | H25: 0 | K25: SR+CR | L25: Poor | M25: Small GrainSR+CRPoor | N25: 64 | O25: 75 | P25: 83 | Q25: 86 | S25: Commercial & business-85 | T25: =C25&D25&E25 ->  | V25: Contoured | W25: Fair | X25: PastureContouredFair | Y25: 25 | Z25: 59 | AA25: 75 | AB25: 83
G26: =IF(T26="",0,VLOOKUP(T26,M$8:Q$90,5,FALSE)) -> 0 | H26: 0 | K26: SR+CR | L26: Good | M26: Small GrainSR+CRGood | N26: 60 | O26: 72 | P26: 80 | Q26: 84 | S26: Industrial-72 | T26: =C26&D26&E26 ->  | V26: Contoured | W26: Good | X26: PastureContouredGood | Y26: 6 | Z26: 35 | AA26: 70 | AB26: 79
B27: Sub Total | F27: =SUM(F23:F26) -> 0 | H27: =SUM(H23:H26) -> 0 | K27: C | L27: Poor | M27: Small GrainCPoor | N27: 63 | O27: 74 | P27: 82 | Q27: 85 | S27: 0.05 ha-65 | U27: Meadow | X27: Meadow | Y27: 30 | Z27: 58 | AA27: 71 | AB27: 78
B28: Total | F28: =SUM(F12,F17,F22,F27) -> 100 | H28: =H12+H17+H22+H27 -> 51.3 | K28: C | L28: Good | M28: Small GrainCGood | N28: 61 | O28: 73 | P28: 81 | Q28: 84 | S28: 0.1 ha-38 | U28: Woodland | W28: Poor | X28: =IF(U28="",U$28&V28&W28,U28&V28&W28) -> WoodlandPoor | Y28: 45 | Z28: 66 | AA28: 77 | AB28: 83
F29: =IF(OR(F28=0,F28=100),"",IF(F28<>100,"Area proportions should be 100%")) ->  | K29: C+CR | L29: Poor | M29: Small GrainC+CRPoor | N29: 62 | O29: 73 | P29: 81 | Q29: 84 | S29: 0.135 ha-30 | W29: Fair | X29: =IF(U29="",U$28&V29&W29,U29&V29&W29) -> WoodlandFair | Y29: 36 | Z29: 60 | AA29: 73 | AB29: 79
K30: C+CR | L30: Good | M30: Small GrainC+CRGood | N30: 60 | O30: 72 | P30: 80 | Q30: 83 | S30: 0.2 ha-25 | W30: Good | X30: =IF(U30="",U$28&V30&W30,U30&V30&W30) -> WoodlandGood | Y30: 25 | Z30: 55 | AA30: 70 | AB30: 77
K31: C&T | L31: Poor | M31: Small GrainC&TPoor | N31: 61 | O31: 72 | P31: 79 | Q31: 82 | S31: 0.4 ha-20 | U31: Farmsteads | X31: =IF(U31="",U$28&V31&W31,U31&V31&W31) -> Farmsteads | Y31: 59 | Z31: 74 | AA31: 82 | AB31: 86
K32: C&T | L32: Good | M32: Small GrainC&TGood | N32: 59 | O32: 70 | P32: 78 | Q32: 81 | S32: 0.8 ha-12 | U32: Roads | X32: =IF(U32="",U$28&V32&W32,U32&V32&W32) -> Roads | Y32: 72 | Z32: 82 | AA32: 87 | AB32: 89
K33: C&T+CR | L33: Poor | M33: Small GrainC&T+CRPoor | N33: 60 | O33: 71 | P33: 78 | Q33: 81 | S33: Developing urban areas | U33: SR - Straight row C - Contoured T - Treated
K34: C&T+CR | L34: Good | M34: Small GrainC&T+CRGood | N34: 58 | O34: 69 | P34: 77 | Q34: 80 | S34: Newly graded areas
K35: Close-Seeded SR or broadcst | L35: Poor | M35: Small GrainClose-Seeded SR or broadcstPoor | N35: 66 | O35: 77 | P35: 85 | Q35: 89
K36: Close-Seeded SR or broadcst | L36: Good | M36: Small GrainClose-Seeded SR or broadcstGood | N36: 58 | O36: 72 | P36: 81 | Q36: 85
K37: Legumes or C | L37: Poor | M37: Small GrainLegumes or CPoor | N37: 64 | O37: 75 | P37: 83 | Q37: 85
K38: Rotation | L38: Good | M38: Small GrainRotationGood | N38: 55 | O38: 69 | P38: 78 | Q38: 83
J39: Meadow | K39: C & T | L39: Poor | M39: =IF(J39="",J$39&K39&L39,J39&K39&L39) -> MeadowC & TPoor | N39: 63 | O39: 73 | P39: 80 | Q39: 83
K40: C & T | L40: Good | M40: =IF(J40="",J$39&K40&L40,J40&K40&L40) -> MeadowC & TGood | N40: 51 | O40: 67 | P40: 76 | Q40: 80
K41: Continuous | N41: 35 | O41: 59 | P41: 72 | Q41: 79
J42: Pasture-grass | L42: Poor | M42: =IF(J42="",J$42&K42&L42,J42&K42&L42) -> Pasture-grassPoor | N42: 68 | O42: 79 | P42: 86 | Q42: 89
L43: Fair | M43: Pasture-grassFair | N43: 49 | O43: 69 | P43: 79 | Q43: 84
L44: Good | M44: Pasture-grassGood | N44: 39 | O44: 61 | P44: 74 | Q44: 80
J45: Brush-weed-grass | L45: Poor | M45: Brush-weed-grassPoor | N45: 48 | O45: 67 | P45: 77 | Q45: 83
L46: Fair | M46: Pasture-grassFair | N46: 35 | O46: 56 | P46: 70 | Q46: 77
L47: Good | M47: Pasture-grassGood | N47: 304 | O47: 48 | P47: 65 | Q47: 73
J48: Woods-grass | L48: Poor | M48: =IF(J48="",J$48&K48&L48,J48&K48&L48) -> Woods-grassPoor | N48: 57 | O48: 73 | P48: 82 | Q48: 86
L49: Fair | M49: =IF(J49="",J$48&K49&L49,J49&K49&L49) -> Woods-grassFair | N49: 43 | O49: 65 | P49: 76 | Q49: 82
L50: Good | M50: =IF(J50="",J$48&K50&L50,J50&K50&L50) -> Woods-grassGood | N50: 32 | O50: 58 | P50: 72 | Q50: 79
J51: Woods | L51: Poor | M51: =IF(J51="",J$51&K51&L51,J51&K51&L51) -> WoodsPoor | N51: 45 | O51: 66 | P51: 77 | Q51: 83
L52: Fair | M52: =IF(J52="",J$51&K52&L52,J52&K52&L52) -> WoodsFair | N52: 36 | O52: 60 | P52: 73 | Q52: 79
L53: Good | M53: =IF(J53="",J$51&K53&L53,J53&K53&L53) -> WoodsGood | N53: 25 | O53: 55 | P53: 70 | Q53: 77
J54: Farms building and lanes | M54: =IF(J54="",J$42&K54&L54,J54&K54&L54) -> Farms building and lanes | N54: 59 | O54: 74 | P54: 82 | Q54: 86
J55: Mix grass weeds brush | L55: Poor | M55: =IF(J55="",J$55&K55&L55,J55&K55&L55) -> Mix grass weeds brushPoor | O55: 80 | P55: 87 | Q55: 93
L56: Fair | M56: =IF(J56="",J$55&K56&L56,J56&K56&L56) -> Mix grass weeds brushFair | O56: 71 | P56: 81 | Q56: 89
L57: Good | M57: =IF(J57="",J$55&K57&L57,J57&K57&L57) -> Mix grass weeds brushGood | O57: 62 | P57: 74 | Q57: 85
J58: Mount brush-small trees | L58: Poor | M58: =IF(J58="",J$58&K58&L58,J58&K58&L58) -> Mount brush-small treesPoor | O58: 66 | P58: 74 | Q58: 79
L59: Fair | M59: =IF(J59="",J$58&K59&L59,J59&K59&L59) -> Mount brush-small treesFair | O59: 48 | P59: 57 | Q59: 63
L60: Good | M60: =IF(J60="",J$58&K60&L60,J60&K60&L60) -> Mount brush-small treesGood | O60: 30 | P60: 41 | Q60: 48
J61: Small trees,grass | L61: Poor | M61: =IF(J61="",J$61&K61&L61,J61&K61&L61) -> Small trees,grassPoor | O61: 75 | P61: 85 | Q61: 89
L62: Fair | M62: =IF(J62="",J$61&K62&L62,J62&K62&L62) -> Small trees,grassFair | O62: 58 | P62: 73 | Q62: 80
L63: Good | M63: =IF(J63="",J$61&K63&L63,J63&K63&L63) -> Small trees,grassGood | O63: 41 | P63: 61 | Q63: 71
J64: Brush-grass understory | L64: Poor | M64: =IF(J64="",J$64&K64&L64,J64&K64&L64) -> Brush-grass understoryPoor | N64: 63 | O64: 67 | P64: 80 | Q64: 85
L65: Fair | M65: =IF(J65="",J$64&K65&L65,J65&K65&L65) -> Brush-grass understoryFair | N65: 55 | O65: 51 | P65: 63 | Q65: 70
L66: Good | M66: =IF(J66="",J$64&K66&L66,J66&K66&L66) -> Brush-grass understoryGood | N66: 49 | O66: 35 | P66: 47 | Q66: 55
J67: Desert shrub brush | L67: Poor | M67: =IF(J67="",J$67&K67&L67,J67&K67&L67) -> Desert shrub brushPoor | O67: 77 | P67: 85 | Q67: 88
L68: Fair | M68: =IF(J68="",J$67&K68&L68,J68&K68&L68) -> Desert shrub brushFair | O68: 72 | P68: 81 | Q68: 86
L69: Good | M69: =IF(J69="",J$67&K69&L69,J69&K69&L69) -> Desert shrub brushGood | O69: 68 | P69: 79 | Q69: 84
J70: Open space | L70: Poor | M70: =IF(J70="",J$70&K70&L70,J70&K70&L70) -> Open space Poor | N70: 68 | O70: 79 | P70: 86 | Q70: 89
L71: Fair | M71: =IF(J71="",J$70&K71&L71,J71&K71&L71) -> Open space Fair | N71: 49 | O71: 69 | P71: 79 | Q71: 84
L72: Good | M72: =IF(J72="",J$70&K72&L72,J72&K72&L72) -> Open space Good | N72: 39 | O72: 61 | P72: 74 | Q72: 80
J73: Impervious areas | M73: =IF(J73="",J$42&K73&L73,J73&K73&L73) -> Impervious areas | N73: 98 | O73: 98 | P73: 98 | Q73: 98
J74: Streets and roads | M74: =IF(J74="",J$74&K74&L74,J74&K74&L74) -> Streets and roads
L75: Paved-curb and storm | M75: =IF(J75="",J$74&K75&L75,J75&K75&L75) -> Streets and roadsPaved-curb and storm | N75: 98 | O75: 98 | P75: 98 | Q75: 98
L76: Paved- open ditches | M76: =IF(J76="",J$74&K76&L76,J76&K76&L76) -> Streets and roadsPaved- open ditches | N76: 83 | O76: 89 | P76: 92 | Q76: 93
L77: Gravel | M77: =IF(J77="",J$74&K77&L77,J77&K77&L77) -> Streets and roadsGravel | N77: 76 | O77: 85 | P77: 89 | Q77: 91
L78: Dirt | M78: =IF(J78="",J$74&K78&L78,J78&K78&L78) -> Streets and roadsDirt | N78: 72 | O78: 82 | P78: 87 | Q78: 89
J79: Natural desert cover | M79: =IF(J79="",J$79&K79&L79,J79&K79&L79) -> Natural desert cover | N79: 63 | O79: 77 | P79: 85 | Q79: 88
J80: Commercial & business-85 | M80: =IF(J80="",J$80&K80&L80,J80&K80&L80) -> Commercial & business-85 | N80: 89 | O80: 92 | P80: 94 | Q80: 95
J81: Industrial-72 | M81: =IF(J81="",J$81&K81&L81,J81&K81&L81) -> Industrial-72 | N81: 81 | O81: 88 | P81: 91 | Q81: 93
J82: Residential districts by average lot size:
J83: 0.05 ha-65 | M83: =J83&K83&L83 -> 0.05 ha-65 | N83: 77 | O83: 85 | P83: 90 | Q83: 92
J84: 0.1 ha-38 | M84: =J84&K84&L84 -> 0.1 ha-38 | N84: 61 | O84: 75 | P84: 83 | Q84: 87
J85: 0.135 ha-30 | M85: 0.135 ha-30 | N85: 57 | O85: 72 | P85: 81 | Q85: 86
J86: 0.2 ha-25 | M86: 0.2 ha-25 | N86: 54 | O86: 70 | P86: 80 | Q86: 85
J87: 0.4 ha-20 | M87: 0.4 ha-20 | N87: 51 | O87: 68 | P87: 79 | Q87: 84
J88: 0.8 ha-12 | M88: 0.8 ha-12 | N88: 46 | O88: 65 | P88: 77 | Q88: 82
J89: Developing urban areas | M89: Developing urban areas
J90: Newly graded areas | M90: Newly graded areas | N90: 77 | O90: 86 | P90: 91 | Q90: 94

Sheet TC
A2: NB: Time of Concentration or flow runtime computation
B3: Insert Data in Yellow Cells Only (start from lowest to highest elevation) | J3: Consider overland and channel flows separatley for calculating Tc ? | M3: If "Yes", Enter area propoertion for each land use type in the next Table | N3: Kerby Retardance coefficient (N)
B4: No. Reach | C4: Distance from watershed divide(km) | D4: Elevation (m) | E4: Slope | F4: Tc (channel) | G4: Tc (overland) | H4: Tc (hrs) | N4: Generalized land use description | O4: Area proportion (decimal or %) | P4: Retardance coefficient (N)
B5: 1 | D5: 2521 | H5: =SUM(F5:G5) -> 0 | N5: Pavement | O5: 0 | P5: 0.02
B6: =B5+1 -> 2 | C6: 12.17 | D6: 2133 | E6: =IF(C6=0,"",(D5-D6)/(1000*(C6-C5))) -> 0.03188167625 | F6: =IF(C6>0,0.066*(C6-C5)^0.77/E6^0.385,"") -> 1.703547859 | G6: =IF(AND(C6>0,M$7>0),0.604*(M$7*(C6-C5))^0.467*E6^-0.235,0) -> 2.634730041 | H6: =SUM(F6:G6) -> 4.3382779 | M6: Weighted N | N6: Deciduous forest | P6: 0.6
B7: =B6+1 -> 3 | E7: =IF(C7=0,"",(D6-D7)/(1000*(C7-C6))) ->  | F7: =IF(C7>0,0.066*(C7-C6)^0.77/E7^0.385,"") ->  | G7: 0 | H7: =SUM(F7:G7) -> 0 | M7: =IF(O5:O11<1,SUMPRODUCT(O5:O11,P5:P11),SUMPRODUCT(O5:O11,P5:P11)/100) -> 0.34 | N7: Poor grass, cultivated row crops or moderately rough packed surfaces | O7: 0.3 | P7: 0.2
B8: 4 | G8: 0 | H8: =SUM(F8:G8) -> 0 | N8: Smooth, bare, packed soil | P8: 0.1
B9: 5 | G9: 0 | H9: 0 | N9: Pasture, average grass | O9: 0.7 | P9: 0.4
B10: 6 | G10: 0 | H10: 0 | N10: Dense grass, coniferous forest or deciduous forest with deep litter | P10: 0.8
B11: 7 | G11: 0 | H11: 0 | N11: Dense grass, coniferous forest or deciduous forest with deep litter | P11: 0.8
B12: 8 | G12: 0 | H12: 0
B13: 9 | G13: 0 | H13: 0
B14: 10 | G14: 0 | H14: 0
B15: 11 | G15: 0 | H15: 0
B16: 12 | G16: 0 | H16: 0
B17: 13 | G17: 0 | H17: 0
B18: 14 | G18: 0 | H18: 0
B19: 15 | G19: 0 | H19: 0
B20: Total | H20: =SUM(H6:H19)-0.41 -> 3.9282779
F21: If TC known, enter it here. | H21: =H20 -> 3.9282779

Sheet Peakflow
C2: NB: Enter Data in Yellow cells Only
G4: =IF(H4=1,"Enter Rainfall Profile"," ") -> Enter Rainfall Profile | H4: 1 | J4: 1 | L4: =IF(J4=1,"Enter Area Reduction Factor (ARF)"," ") -> Enter Area Reduction Factor (ARF)
B6: Composite Hydrograph using SCS-Curve Number Method
B7: Description | C7: Value | D7: Unit | H7: Time (hr) | I7: Rainfall Profile | K7: ARF | M7: Rainfall Profile | O7: Numbering and ordering | Q7: Rainfall | S7: Runoff (mm) | U7: Peak flow (m3/s) | V7: Time of begging (hr) | W7: Time to Peak (hr) | X7: Time to end (hr) | Y7: Rising and Recession Slopes
B8: Name of Project | C8: Goli SSIP | F8: 1 | I8: From keyboard | J8: Formula* | K8: From Keyboard | L8: Formula** | Q8: Rearranged incremental | R8: Cumulative rainfall
B9: Return period | C9: 50 | D9: years | M9: Cumulative | N9: Incremental | O9: Initial Order | P9: Rearranged order | S9: Cumulative | T9: Incremental | Y9: Su | Z9: Sf
B10: 24-hr maximum point rainfall | C10: 192.13 | D10: mm | H10: =C13 -> 1 | I10: 46.008 | J10: =14.149*LN(H10)+46.008 -> 46.008 | K10: 84.7704 | L10: =100*(1.04-0.08*LN(C$11))*H10^(0.02*C$11^0.28) -> 77.58309261 | M10: =IF(AND(H$4=1,J$4=1),I10*K10,IF(AND(H$4=1,J$4=2),I10*L10,IF(AND(H$4=2,J$4=1),I10*L10,IF(AND(H$4=2,J$4=2),J10*L10))))*C$10/10000 -> 74.93293953 | N10: =M10 -> 74.93293953 | O10: =RANK(N10,N$10:N$15) -> 1 | P10: =O14 -> 5 | Q10: =INDEX(N$10:N$15,MATCH(P10,O$10:O$15,0)) -> 7.192591 | R10: =N15 -> 4.740140906 | S10: =IF(R10-0.2*(25400/C$19-254)>0,(R10-0.2*(25400/C$19-254))^2/(R10+0.8*(25400/C$19-254)),0) -> 0 | T10: =S10 -> 0 | U10: =C$22*T10 -> 0 | V10: 0 | W10: =C$14 -> 2.85696674 | X10: =C$16 -> 7.628101196 | Y10: =$U10/W$10 -> 0 | Z10: =$U10/(X$10-W$10) -> 0
B11: Catchment area | C11: 27.17 | D11: km2 | H11: =H10+C$13 -> 2 | I11: 53.81533946 | J11: =14.149*LN(H11)+46.008 -> 55.81533946 | K11: 89.1176 | L11: =100*(1.04-0.08*LN(C$11))*H11^(0.02*C$11^0.28) -> 80.34226111 | M11: =IF(AND(H$4=1,J$4=1),I11*K11,IF(AND(H$4=1,J$4=2),I11*L11,IF(AND(H$4=2,J$4=1),I11*L11,IF(AND(H$4=2,J$4=2),J11*L11))))*C$10/10000 -> 92.14350942 | N11: =M11-M10 -> 17.21056989 | O11: 2 | P11: =O13 -> 4 | Q11: 13.55638014 | R11: =R10+Q11 -> 18.29652104 | S11: 0 | T11: =S11-S10 -> 0 | U11: 0 | V11: =V10+C$13 -> 1 | W11: =W10+C$13 -> 3.85696674 | X11: =X10+C$13 -> 8.628101196 | Y11: 0 | Z11: 0
B12: Time of concentration | C12: =IF(TC!H21="",TC!H20,TC!H21) -> 3.9282779 | D12: hrs | H12: =H11+C$13 -> 3 | I12: 60.55226527 | J12: 61.55226527 | K12: 92.378 | L12: =100*(1.04-0.08*LN(C$11))*H12^(0.02*C$11^0.28) -> 82.00153917 | M12: 107.4717036 | N12: =M12-M11 -> 15.32819414 | O12: 3 | P12: =O10 -> 1 | Q12: 74.93293953 | R12: =R11+Q12 -> 93.22946057 | S12: 7.078478056 | T12: =S12-S11 -> 7.078478056 | U12: 14.0019228 | V12: =V11+C$13 -> 2 | W12: =W11+C$13 -> 4.85696674 | X12: =X11+C$13 -> 9.628101196 | Y12: 4.900975082 | Z12: 2.934715618
B13: Unit rainfall duration | C13: =IF(C12<=3,IF(C12/6-MROUND(C12/6,0.05)<0.25,CEILING(C12/6,0.05),MROUND(C12/6,0.05)),1) -> 1 | D13: hrs | H13: =H12+C$13 -> 4 | I13: 66.62267892 | J13: 65.62267892 | K13: 94.5516 | L13: 83.1995568 | M13: 121.0280837 | N13: =M13-M12 -> 13.55638014 | O13: 4 | P13: =O12 -> 3 | Q13: 15.32819414 | R13: =R12+Q13 -> 108.5576547 | S13: 12.07457011 | T13: =S13-S12 -> 4.996092051 | U13: 9.882759354 | V13: =V12+C$13 -> 3 | W13: =W12+C$13 -> 5.85696674 | X13: =X12+C$13 -> 10.6281012 | Y13: 3.459179001 | Z13: 2.071364671
B14: Time to Peak | C14: =0.6*C12+C13/2 -> 2.85696674 | D14: hrs | H14: =H13+C$13 -> 5 | I14: 69.77993702 | J14: 68.77993702 | K14: 95.6384 | L14: 84.14085165 | M14: 128.2206747 | N14: =M14-M13 -> 7.192591 | O14: 5 | P14: =O11 -> 2 | Q14: 17.21056989 | R14: =R13+Q14 -> 125.7682246 | S14: 18.86875617 | T14: =S14-S13 -> 6.794186066 | U14: 13.43956541 | V14: =V13+C$13 -> 4 | W14: =W13+C$13 -> 6.85696674 | X14: =X13+C$13 -> 11.6281012 | Y14: 4.70413786 | Z14: 2.816849018
B15: Recession Time | C15: =1.67*C14 -> 4.771134456 | D15: hrs | H15: =H14+C$13 -> 6 | I15: 72.35960473 | J15: 71.35960473 | K15: 95.6384 | L15: 84.9178455 | M15: 132.9608156 | N15: =M15-M14 -> 4.740140906 | O15: 6 | P15: =O15 -> 6 | Q15: 4.740140906 | R15: =R14+Q15 -> 130.5083655 | S15: 20.93473224 | T15: =S15-S14 -> 2.065976063 | U15: 4.086702977 | V15: =V14+C$13 -> 5 | W15: =W14+C$13 -> 7.85696674 | X15: =X14+C$13 -> 12.6281012 | Y15: 1.430434215 | Z15: 0.8565474342
B16: Base Time | C16: =2.67*C14 -> 7.628101196 | D16: hrs | I16: * See rainfall profile sheet | L16: **http://www.scielo.org.za/scielo.php?script=sci_serial&pid=1021-2019
B17: Average Area Reduction Factor (ARF) | C17: =(1.04-0.08*LN(C$11))*H12^(0.02*C$11^0.28) -> 0.8200153917 | D17: dec
B18: Areal Rainfall | C18: =C10*C17 -> 157.5495572 | D18: mm | I18: Hydrograph Ordinates
B19: =IF(F8=1,"Curve Number (AMC II)","Curve Number (AMC III)") -> Curve Number (AMC II) | C19: =IF(F8=1,CN!H28,CN!H28/(0.43+0.0057*CN!H28)) -> 51.3 | H19: Time (hr) | I19: UH | J19: Q1 | K19: Q2 | L19: Q3 | M19: Q4 | N19: Q5 | O19: Q6 | P19: Qt
B20: Maximum retention potential (S) | C20: =254*(100/C19-1) -> 241.1267057 | D20: mm | H20: 0 | I20: 0 | J20: 0 | P20: =SUM(J20:O20) -> 0
B21: Runoff | C21: =IF(C11<10,(C18-0.2*C20)^2/(C18*0.8*C20),S15) -> 20.93473224 | D21: mm | H21: =IF(OR(H20+C$13=C$14,AND(H20<C$14,H20+C$13>C$14)),C$14,IF(OR(H20+C$13=C$16,AND(H20<C$16,H20+C$13>C$16)),C$16,H20+C$13)) -> 1 | I21: =IF(H21<=$W$10,$C$22/$W$10*H21, IF(H21<X$10, $C$22-$C$22/($X$10-$W$10)*(H21-$W$10),0)) -> 0.6923769549 | J21: =T$10*I21 -> 0 | K21: 0 | P21: =SUM(J21:O21) -> 0
B22: Peak flow rate per mm of runoff | C22: =0.208*C11/C14 -> 1.978097932 | D22: m3/sec/mm | H22: =IF(OR(H21+C$13=C$14,AND(H21<C$14,H21+C$13>C$14)),C$14,IF(OR(H21+C$13=C$16,AND(H21<C$16,H21+C$13>C$16)),C$16,H21+C$13)) -> 2 | I22: 1.38475391 | J22: 0 | K22: =T$11*I21 -> 0 | L22: 0 | P22: 0
B23: Peak flood (Qp) | C23: =IF(C11<10,ROUNDUP(0.208*C11*C21/C14,1),ROUNDUP(MAX(P20:P38),1)) -> 32.3 | D23: m3/s | H23: 2.85696674 | I23: 1.978097932 | J23: 0 | K23: 0 | L23: =T$12*I21 -> 4.900975082 | M23: 0 | P23: 4.900975082
H24: 3.85696674 | I24: 1.563500953 | J24: 0 | K24: 0 | L24: 9.801950164 | M24: =T$13*I21 -> 3.459179001 | N24: 0 | P24: 13.26112916
H25: =IF(OR(H24+C$13=C$14,AND(H24<C$14,H24+C$13>C$14)),C$14,IF(OR(H24+C$13=C$16,AND(H24<C$16,H24+C$13>C$16)),C$16,H24+C$13)) -> 4.85696674 | I25: 1.148903974 | J25: 0 | K25: 0 | L25: 14.0019228 | M25: 6.918358002 | N25: =T$14*I21 -> 4.70413786 | O25: 0 | P25: 25.62441867
H26: 5.85696674 | I26: 0.7343069949 | J26: 0 | K26: 0 | L26: 11.06720719 | M26: 9.882759354 | N26: 9.408275719 | O26: =T$15*I21 -> 1.430434215 | P26: 31.78867647
H27: 6.85696674 | I27: 0.3197100159 | J27: 0 | K27: 0 | L27: 8.132491567 | M27: 7.811394683 | N27: 13.43956541 | O27: 2.86086843 | P27: 32.24432009
H28: 7.628101196 | I28: 0 | J28: 0 | K28: 0 | L28: 5.197775949 | M28: 5.740030012 | N28: 10.62271639 | O28: 4.086702977 | P28: 25.64722533
H29: 8.628101196 | I29: 0 | J29: 0 | K29: 0 | L29: 2.263060332 | M29: 3.66866534 | N29: 7.80586737 | O29: 3.230155542 | P29: 16.96774858
H30: 9.628101196 | I30: 0 | J30: 0 | K30: 0 | L30: 0 | M30: 1.597300669 | N30: 4.989018353 | O30: 2.373608108 | P30: 8.95992713
H31: 10.6281012 | I31: 0 | J31: 0 | K31: 0 | L31: 0 | M31: 0 | N31: 2.172169335 | O31: 1.517060674 | P31: 3.689230009
H32: 11.6281012 | I32: 0 | J32: 0 | K32: 0 | L32: 0 | M32: 0 | N32: 0 | O32: 0.6605132397 | P32: 0.6605132397
H33: 12.6281012 | I33: =IF(H33<=$W$10,$C$22/$W$10*H33, IF(H33<X$10, $C$22-$C$22/($X$10-$W$10)*(H33-$W$10),0)) -> 0 | J33: 0 | K33: 0 | L33: 0 | M33: 0 | N33: 0 | O33: 0 | P33: 0
H34: 13.6281012 | K34: 0 | L34: 0 | M34: 0 | N34: 0 | O34: 0 | P34: 0
H35: 14.6281012 | L35: 0 | M35: 0 | N35: 0 | O35: 0 | P35: 0
H36: 15.6281012 | M36: 0 | N36: 0 | O36: 0 | P36: 0
H37: 16.6281012 | N37: 0 | O37: 0 | P37: 0
H38: =IF(OR(H37+C$13=C$14,AND(H37<C$14,H37+C$13>C$14)),C$14,IF(OR(H37+C$13=C$16,AND(H37<C$16,H37+C$13>C$16)),C$16,H37+C$13)) -> 17.6281012 | I38: 1 | O38: 0 | P38: 0
